fUST/lending_fUST_20240624
["ID","MTS","AMOUNT","RATE_DAILY","PERIOD"]
[330210199,1719165041972,-500.0,0.00016438,2]
[330210200,1719165041981,-151.0,0.00016438,2]
[330210201,1719165041990,-151.0,0.00016438,2]
[330210202,1719165041999,-219.980532,0.00016438,2]
[330210203,1719165042008,-500.0,0.00016438,2]
[330210204,1719165042018,-4280.99,0.00016438,2]
[330210205,1719165042027,-1627.49,0.00016438,2]
[330210206,1719165042037,-151.0,0.00016438,2]
[330210207,1719165042046,-509.07342528,0.00016438,2]
[330210208,1719165042055,-232.832029,0.00016438,2]
[330210209,1719165042065,-602.30218195,0.00016438,2]
[330210210,1719165042074,-2932.59,0.00016438,2]
[330210211,1719165042083,-500.0,0.00016438,2]
[330210212,1719165042092,-2497.94,0.00016438,2]
[330210213,1719165042102,-513.18659974,0.00016438,2]
[330210214,1719165042116,-199.81192946,0.00016438,2]
[330210215,1719165042125,-414.72409518,0.00016438,2]
[330210216,1719165042135,-366.9165513,0.00016438,2]
[330210217,1719165042144,-505.25704824,0.00016438,2]
[330210218,1719165042154,-500.0,0.00016438,2]
[330210219,1719165042163,-500.0,0.00016438,2]
[330210220,1719165042172,-500.0,0.00016438,2]
[330210221,1719165042185,-500.0,0.00016438,2]
[330210222,1719165042194,-606.94013411,0.00016438,2]
[330210223,1719165042203,-500.0,0.00016438,2]
[330210224,1719165042213,-1135.55,0.00016438,2]
[330210225,1719165042223,-500.0,0.00016438,2]
[330210226,1719165042232,-625.07,0.00016438,2]
[330210227,1719165042242,-1674.28,0.00016438,2]
[330210228,1719165042251,-500.0,0.00016438,2]
[330210229,1719165042261,-1161.74,0.00016438,2]
[330210230,1719165042271,-500.0,0.00016438,2]
[330210231,1719165042281,-500.0,0.00016438,2]
[330210232,1719165042292,-844.36,0.00016438,2]
[330210233,1719165042301,-32569.95517173,0.00016462,2]
[330210234,1719165042350,-469.057992,0.00016438,2]
[330210235,1719165042569,-292.95882568,0.00016437,2]
[330210236,1719165042579,-446.992008,0.00016438,2]
[330210237,1719165042589,-49737.91709962,0.00016462,2]
[330210238,1719165042600,-154.86836189,0.00016486,2]
[330210239,1719165042610,-231.27995887,0.00016486,2]
[330210240,1719165042621,-625.37,0.00016499,2]
[330210241,1719165042631,-529.88377611,0.000165,2]
[330210242,1719165042640,-229.20066308,0.000165,2]
[330210243,1719165042650,-154.86836189,0.00016525,2]
[330210244,1719165042660,-904.61585465,0.0001657,2]
[330210245,1719165042670,-3124.78288904,0.0001657,4]
[330210246,1719165042782,-839.43938696,0.0001657,2]
[330210247,1719165042792,-309.65937546,0.0001657,2]
[330210248,1719165042801,-932.60140374,0.00016589,2]
[330210249,1719165042810,-2824.79281863,0.00016589,2]
[330210250,1719165042822,-154.86836189,0.00016607,2]
[330210251,1719165042831,-155.0,0.0001668,2]
[330210252,1719165042841,-500.0,0.00016687,2]
[330210253,1719165042850,-524.35716251,0.00016688,2]
[330210254,1719165042859,-154.86836189,0.00016688,2]
[330210255,1719165042870,-500.0,0.00016711,2]
[330210256,1719165042879,-500.0,0.00016711,2]
[330210257,1719165042889,-500.0,0.00016711,2]
[330210258,1719165042899,-222.94034699,0.00016711,2]
[330210259,1719165042908,-500.0,0.00016711,2]
[330210260,1719165042918,-500.0,0.00016711,2]
[330210261,1719165042928,-500.0,0.00016711,2]
[330210262,1719165042937,-500.0,0.00016711,2]
[330210263,1719165042947,-595.27498546,0.00016711,2]
[330210264,1719165042956,-625.37,0.00016711,2]
[330210265,1719165042965,-625.37,0.00016711,2]
[330210266,1719165042974,-625.37,0.00016711,2]
[330210267,1719165042984,-625.37,0.00016711,2]
[330210268,1719165042993,-625.37,0.00016711,2]
[330210269,1719165043002,-625.37,0.00016711,2]
[330210270,1719165043011,-625.56705873,0.00016711,2]
[330210271,1719165043021,-188.52895353,0.00016712,2]
[330210272,1719165043031,-515.18115077,0.00016712,2]
[330210273,1719165043040,-729.56,0.00016712,2]
[330210274,1719165043049,-630.79,0.00016712,2]
[330210275,1719165043059,-535.69,0.00016712,2]
[330210276,1719165043068,-500.0,0.00016712,2]
[330210277,1719165043077,-500.0,0.00016712,2]
[330210278,1719165043087,-500.0,0.00016712,2]
[330210279,1719165043096,-500.0,0.00016712,2]
[330210280,1719165043107,-500.0,0.00016712,2]
[330210281,1719165043118,-500.0,0.00016712,2]
[330210282,1719165043127,-500.0,0.00016712,2]
[330210283,1719165043137,-500.0,0.00016712,2]
[330210284,1719165043149,-500.0,0.00016712,2]
[330210285,1719165043160,-500.0,0.00016712,2]
[330210286,1719165043169,-500.0,0.00016712,2]
[330210287,1719165043181,-500.0,0.00016712,2]
[330210288,1719165043193,-500.0,0.00016712,2]
[330210289,1719165043202,-500.0,0.00016712,2]
[330210290,1719165043212,-500.0,0.00016712,2]
[330210294,1719165043221,-1163.48,0.00016712,2]
[330210298,1719165043231,-500.0,0.00016712,2]
[330210301,1719165043240,-366.53271929,0.00016712,2]
[330210311,1719165043333,-154.79728071,0.00016712,2]
[330210312,1719165043343,-566.19,0.00016712,2]
[330210313,1719165043352,-500.0,0.00016712,2]
[330210314,1719165043362,-500.0,0.00016712,2]
[330210315,1719165043371,-500.0,0.00016712,2]
[330210316,1719165043380,-500.0,0.00016712,2]
[330210317,1719165043390,-500.0,0.00016712,2]
[330210318,1719165043399,-500.0,0.00016712,2]
[330210319,1719165043409,-500.0,0.00016712,2]
[330210320,1719165043419,-500.0,0.00016712,2]
[330210321,1719165043429,-500.0,0.00016712,2]
[330210322,1719165043439,-549.36,0.00016712,2]
[330210323,1719165043448,-2151.73,0.00016712,2]
[330210324,1719165043458,-925.69,0.00016712,2]
[330210325,1719165043467,-500.0,0.00016712,2]
[330210326,1719165043476,-617.78,0.00016712,2]
[330210327,1719165043485,-515.20025745,0.00016712,2]
[330210329,1719165043494,-500.0,0.00016712,2]
[330210331,1719165043503,-500.0,0.00016712,2]
[330210333,1719165043513,-723.96,0.00016712,2]
[330210335,1719165043522,-500.0,0.00016712,2]
[330210337,1719165043530,-500.0,0.00016712,2]
[330210338,1719165043540,-500.0,0.00016712,2]
[330210339,1719165043549,-500.0,0.00016712,2]
[330210340,1719165043558,-927.98,0.00016712,2]
[330210341,1719165043568,-500.0,0.00016712,2]
[330210342,1719165043577,-1386.4,0.00016712,2]
[330210343,1719165043586,-500.0,0.00016712,2]
[330210344,1719165043597,-504.68688583,0.00016712,2]
[330210345,1719165043607,-838.3,0.00016712,2]
[330210346,1719165043617,-5290.1,0.00016712,2]
[330210347,1719165043627,-752.07,0.00016712,2]
[330210348,1719165043636,-643.91767806,0.00016712,2]
[330210349,1719165043646,-500.0,0.00016712,2]
[330210350,1719165043656,-510.94617009,0.00016712,2]
[330210351,1719165043665,-500.0,0.00016712,2]
[330210352,1719165043674,-516.99853691,0.00016712,2]
[330210353,1719165043686,-500.0,0.00016712,2]
[330210354,1719165043695,-500.0,0.00016712,2]
[330210355,1719165043707,-1475.86,0.00016712,2]
[330210356,1719165043717,-260.13123492,0.00016712,2]
[330210357,1719165043732,-239.86876508,0.00016712,2]
[330210358,1719165043742,-500.0,0.00016712,2]
[330210359,1719165043752,-500.0,0.00016712,2]
[330210360,1719165043761,-500.0,0.00016712,2]
[330210361,1719165043770,-1262.76,0.00016712,2]
[330210362,1719165043780,-1270.62,0.00016712,2]
[330210363,1719165043789,-500.0,0.00016712,2]
[330210364,1719165043798,-500.0,0.00016712,2]
[330210365,1719165043808,-705.32,0.00016712,2]
[330210366,1719165043817,-500.0,0.00016712,2]
[330210367,1719165043826,-500.0,0.00016712,2]
[330210368,1719165043838,-500.0,0.00016712,2]
[330210369,1719165043847,-500.0,0.00016712,2]
[330210370,1719165043856,-753.99,0.00016712,2]
[330210371,1719165043866,-944.16,0.00016712,2]
[330210372,1719165043875,-500.0,0.00016712,2]
[330210373,1719165043884,-500.0,0.00016712,2]
[330210374,1719165043893,-500.0,0.00016712,2]
[330210375,1719165043902,-500.0,0.00016712,2]
[330210376,1719165043912,-500.0,0.00016712,2]
[330210377,1719165043921,-500.0,0.00016712,2]
[330210378,1719165043932,-500.0,0.00016712,2]
[330210379,1719165043941,-936.14,0.00016712,2]
[330210380,1719165043950,-24.64285337,0.00016712,2]
[330210445,1719165058001,-455.0,0.00019178,10]
[330210446,1719165058044,-1000.0,0.0002,20]
[330210447,1719165058076,-160.0,0.00020121,10]
[330210448,1719165058111,-160.0,0.00020329,11]
[330210449,1719165058136,-160.0,0.00020537,12]
[330210450,1719165058171,-160.0,0.00020745,13]
[330210451,1719165058205,-1000.0,0.00021,21]
[330210452,1719165058357,-2702.9352385,0.00022,14]
[330210455,1719165246902,160.0,0.00020745,10]
[330210531,1719166233058,-3000.0,0.00014808,2]
[330210533,1719166233067,-393.64381157,0.0001489,2]
[330210535,1719166233078,-177.63352354,0.000149,2]
[330210537,1719166233086,-300.0,0.00014964,2]
[330210539,1719166233095,-300.0,0.00014964,2]
[330210541,1719166233104,-2099.18624287,0.00014965,2]
[330210543,1719166233116,-6412.8,0.00014965,2]
[330210692,1719166238415,-2620.59662683,0.00014965,2]
[330210693,1719166238425,-24900.0,0.00015042,2]
[330210694,1719166238434,-284.315619,0.0001509,2]
[330210695,1719166238444,-393.64381153,0.00015227,2]
[330210696,1719166238453,-393.64381153,0.00015564,2]
[330210697,1719166238463,-9600.62757657,0.00015721,2]
[330210698,1719166238472,-393.64381153,0.00015901,2]
[330210699,1719166238482,-735.33721122,0.00016055,2]
[330210700,1719166238491,-393.64381153,0.00016238,2]
[330210701,1719166238502,-70862.50258326,0.000163,2]
[330210702,1719166238512,-154.85288975,0.00016337,2]
[330210703,1719166238522,-190.58341641,0.00016338,2]
[330210704,1719166238531,-2000.0,0.00016338,2]
[330210705,1719166238540,-229.29227807,0.00016376,2]
[330210706,1719166238554,-420.0,0.00016378,2]
[330210707,1719166238565,-159.70589002,0.00016433,2]
[330210708,1719166238574,-2416.50301873,0.00016437,2]
[330210709,1719166238584,-500.0,0.00016438,2]
[330210710,1719166238596,-500.0,0.00016438,2]
[330210711,1719166238606,-500.0,0.00016438,2]
[330210712,1719166238616,-500.0,0.00016438,2]
[330210713,1719166238626,-646.54,0.00016438,2]
[330210714,1719166238638,-500.0,0.00016438,2]
[330210715,1719166238648,-512.20271342,0.00016438,2]
[330210716,1719166238658,-500.0,0.00016438,2]
[330210717,1719166238667,-500.0,0.00016438,2]
[330210718,1719166238676,-500.0,0.00016438,2]
[330210719,1719166238686,-500.0,0.00016438,2]
[330210720,1719166238696,-500.0,0.00016438,2]
[330210721,1719166238705,-500.0,0.00016438,2]
[330210722,1719166238714,-500.0,0.00016438,2]
[330210723,1719166238724,-699.71,0.00016438,2]
[330210724,1719166238733,-500.0,0.00016438,2]
[330210725,1719166238742,-500.0,0.00016438,2]
[330210726,1719166238752,-500.0,0.00016438,2]
[330210727,1719166238762,-151.0,0.00016438,2]
[330210728,1719166238771,-500.0,0.00016438,2]
[330210729,1719166238781,-572.96,0.00016438,2]
[330210730,1719166238791,-500.0,0.00016438,2]
[330210731,1719166238800,-513.60575091,0.00016438,2]
[330210732,1719166238810,-500.0,0.00016438,2]
[330210733,1719166238820,-500.0,0.00016438,2]
[330210734,1719166238830,-500.0,0.00016438,2]
[330210735,1719166238840,-500.0,0.00016438,2]
[330210736,1719166238849,-500.0,0.00016438,2]
[330210737,1719166238859,-594.70103467,0.00016438,2]
[330210738,1719166238869,-500.0,0.00016438,2]
[330210739,1719166238879,-500.0,0.00016438,2]
[330210740,1719166238889,-915.44,0.00016438,2]
[330210741,1719166238899,-500.0,0.00016438,2]
[330210742,1719166238909,-565.76,0.00016438,2]
[330210743,1719166238918,-500.0,0.00016438,2]
[330210744,1719166238929,-508.66610979,0.00016438,2]
[330210745,1719166238938,-500.0,0.00016438,2]
[330210746,1719166238947,-1362.64,0.00016438,2]
[330210747,1719166238957,-543.72,0.00016438,2]
[330210748,1719166238966,-532.20131824,0.00016438,2]
[330210749,1719166238976,-500.0,0.00016438,2]
[330210750,1719166238986,-500.0,0.00016438,2]
[330210751,1719166238995,-250.0,0.00016438,2]
[330210752,1719166239007,-500.0,0.00016438,2]
[330210753,1719166239017,-500.0,0.00016438,2]
[330210754,1719166239026,-519.6408046,0.00016438,2]
[330210755,1719166239036,-500.0,0.00016438,2]
[330210756,1719166239047,-500.0,0.00016438,2]
[330210757,1719166239058,-500.0,0.00016438,2]
[330210758,1719166239069,-500.0,0.00016438,2]
[330210759,1719166239079,-500.0,0.00016438,2]
[330210760,1719166239090,-500.0,0.00016438,2]
[330210761,1719166239100,-258.10119804,0.00016438,2]
[330210762,1719166239111,-500.0,0.00016438,2]
[330210763,1719166239121,-500.0,0.00016438,2]
[330210764,1719166239131,-500.0,0.00016438,2]
[330210765,1719166239141,-500.0,0.00016438,2]
[330210766,1719166239151,-513.6054187,0.00016438,2]
[330210767,1719166239162,-527.21023559,0.00016438,2]
[330210768,1719166239171,-519.01,0.00016438,2]
[330210769,1719166239181,-500.0,0.00016438,2]
[330210770,1719166239191,-500.0,0.00016438,2]
[330210771,1719166239202,-500.0,0.00016438,2]
[330210772,1719166239211,-500.0,0.00016438,2]
[330210773,1719166239222,-580.42,0.00016438,2]
[330210774,1719166239231,-500.0,0.00016438,2]
[330210775,1719166239241,-500.0,0.00016438,2]
[330210776,1719166239253,-500.0,0.00016438,2]
[330210777,1719166239264,-500.0,0.00016438,2]
[330210778,1719166239274,-500.0,0.00016438,2]
[330210779,1719166239285,-500.0,0.00016438,2]
[330210780,1719166239299,-500.0,0.00016438,2]
[330210781,1719166239309,-500.0,0.00016438,2]
[330210782,1719166239320,-460.89676275,0.00016438,2]
[330210783,1719166239331,-500.0,0.00016438,2]
[330210784,1719166239340,-500.0,0.00016438,2]
[330210785,1719166239351,-528.081362,0.00016438,2]
[330210786,1719166239360,-151.0,0.00016438,2]
[330210787,1719166239370,-500.0,0.00016438,2]
[330210788,1719166239380,-500.0,0.00016438,2]
[330210789,1719166239389,-500.0,0.00016438,2]
[330210790,1719166239529,-1157.53,0.00016438,2]
[330210791,1719166239543,-517.89,0.00016438,2]
[330210792,1719166239558,-631.07,0.00016438,2]
[330210793,1719166239568,-500.0,0.00016438,2]
[330210794,1719166239578,-500.0,0.00016438,2]
[330210795,1719166239588,-1972.42,0.00016438,2]
[330210796,1719166239600,-500.0,0.00016438,2]
[330210797,1719166239610,-500.0,0.00016438,2]
[330210798,1719166239620,-566.3,0.00016438,2]
[330210799,1719166239631,-500.0,0.00016438,2]
[330210800,1719166239642,-500.0,0.00016438,2]
[330210801,1719166239651,-500.0,0.00016438,2]
[330210802,1719166239660,-500.0,0.00016438,2]
[330210803,1719166239670,-500.0,0.00016438,2]
[330210804,1719166239680,-806.32,0.00016438,2]
[330210805,1719166239690,-500.0,0.00016438,2]
[330210806,1719166239700,-500.0,0.00016438,2]
[330210807,1719166239709,-500.0,0.00016438,2]
[330210808,1719166239719,-500.0,0.00016438,2]
[330210809,1719166239729,-500.0,0.00016438,2]
[330210810,1719166239739,-500.0,0.00016438,2]
[330210811,1719166239750,-500.0,0.00016438,2]
[330210812,1719166239760,-500.0,0.00016438,2]
[330210813,1719166239769,-500.0,0.00016438,2]
[330210814,1719166239779,-500.0,0.00016438,2]
[330210815,1719166239790,-500.0,0.00016438,2]
[330210816,1719166239801,-500.0,0.00016438,2]
[330210817,1719166239811,-584.78821387,0.00016438,2]
[330210818,1719166239821,-1307.6,0.00016438,2]
[330210819,1719166239831,-500.0,0.00016438,2]
[330210820,1719166239841,-4849.26,0.00016438,2]
[330210821,1719166239851,-500.0,0.00016438,2]
[330210822,1719166239860,-500.0,0.00016438,2]
[330210823,1719166239869,-716.61,0.00016438,2]
[330210824,1719166239879,-500.0,0.00016438,2]
[330210825,1719166239890,-1626.0,0.00016438,2]
[330210826,1719166239899,-500.0,0.00016438,2]
[330210827,1719166239909,-472.60205159,0.00016438,2]
[330210828,1719166239918,-2006.79,0.00016438,2]
[330210829,1719166239928,-500.0,0.00016438,2]
[330210830,1719166239938,-500.0,0.00016438,2]
[330210831,1719166239949,-500.0,0.00016438,2]
[330210832,1719166239959,-500.0,0.00016438,2]
[330210833,1719166239969,-1499.81,0.00016438,2]
[330210834,1719166239979,-500.0,0.00016438,2]
[330210835,1719166239989,-577.25,0.00016438,2]
[330210836,1719166239999,-500.0,0.00016438,2]
[330210837,1719166240009,-394.67258808,0.00016438,2]
[330210838,1719166240018,-509.07342528,0.00016438,2]
[330210839,1719166240027,-414.72409518,0.00016438,2]
[330210840,1719166240037,-508.5865464,0.00016438,2]
[330210841,1719166240047,-500.0,0.00016438,2]
[330210842,1719166240056,-500.0,0.00016438,2]
[330210843,1719166240066,-500.0,0.00016438,2]
[330210844,1719166240076,-500.0,0.00016438,2]
[330210845,1719166240086,-500.0,0.00016438,2]
[330210846,1719166240096,-500.0,0.00016438,2]
[330210847,1719166240107,-500.0,0.00016438,2]
[330210848,1719166240116,-500.0,0.00016438,2]
[330210849,1719166240127,-500.0,0.00016438,2]
[330210850,1719166240138,-691.16,0.00016438,2]
[330210851,1719166240147,-500.0,0.00016438,2]
[330210852,1719166240157,-500.0,0.00016438,2]
[330210853,1719166240167,-500.0,0.00016438,2]
[330210854,1719166240176,-449.73124058,0.00016438,2]
[330210855,1719166240186,-500.0,0.00016438,2]
[330210856,1719166240196,-596.73,0.00016438,2]
[330210857,1719166240206,-500.0,0.00016438,2]
[330210858,1719166240217,-178.65397086,0.00016438,2]
[330210859,1719166240227,-979.54,0.00016438,2]
[330210860,1719166240237,-154.54983412,0.00016438,2]
[330210861,1719166240246,-500.0,0.00016438,2]
[330210862,1719166240256,-500.0,0.00016438,2]
[330210863,1719166240266,-512.75522129,0.00016438,2]
[330210864,1719166240276,-500.0,0.00016438,2]
[330210865,1719166240286,-2041.43,0.00016438,2]
[330210866,1719166240296,-500.0,0.00016438,2]
[330210867,1719166240306,-500.0,0.00016438,2]
[330210868,1719166240315,-500.0,0.00016438,2]
[330210869,1719166240325,-2286.72,0.00016438,2]
[330210870,1719166240335,-500.0,0.00016438,2]
[330210871,1719166240344,-500.0,0.00016438,2]
[330210872,1719166240354,-500.0,0.00016438,2]
[330210873,1719166240364,-500.0,0.00016438,2]
[330210874,1719166240373,-500.0,0.00016438,2]
[330210875,1719166240383,-426.9345968,0.00016438,2]
[330210876,1719166240393,-500.0,0.00016438,2]
[330210877,1719166240402,-500.0,0.00016438,2]
[330210878,1719166240411,-500.0,0.00016438,2]
[330210879,1719166240421,-151.0,0.00016438,2]
[330210880,1719166240431,-500.0,0.00016438,2]
[330210881,1719166240440,-151.0,0.00016438,2]
[330210882,1719166240460,-500.0,0.00016438,2]
[330210883,1719166240472,-1691.3,0.00016438,2]
[330210884,1719166240483,-500.0,0.00016438,2]
[330210885,1719166240492,-500.0,0.00016438,2]
[330210886,1719166240504,-500.0,0.00016438,2]
[330210887,1719166240514,-513.18659974,0.00016438,2]
[330210888,1719166240524,-366.9165513,0.00016438,2]
[330210889,1719166240535,-689.81,0.00016438,2]
[330210890,1719166240545,-500.0,0.00016438,2]
[330210891,1719166240560,-500.0,0.00016438,2]
[330210892,1719166240570,-500.0,0.00016438,2]
[330210893,1719166240581,-663.63,0.00016438,2]
[330210894,1719166240591,-500.0,0.00016438,2]
[330210895,1719166240602,-500.0,0.00016438,2]
[330210896,1719166240612,-503.23688875,0.00016438,2]
[330210897,1719166240622,-500.0,0.00016438,2]
[330210898,1719166240634,-513.51302212,0.00016438,2]
[330210899,1719166240644,-447.41771702,0.00016438,2]
[330210900,1719166240655,-850.64,0.00016438,2]
[330210901,1719166240665,-533.95,0.00016438,2]
[330210903,1719166240675,-500.0,0.00016438,2]
[330210904,1719166240684,-500.0,0.00016438,2]
[330210905,1719166240694,-500.0,0.00016438,2]
[330210906,1719166240704,-500.0,0.00016438,2]
[330210907,1719166240715,-689.4,0.00016438,2]
[330210908,1719166240724,-500.0,0.00016438,2]
[330210909,1719166240734,-500.0,0.00016438,2]
[330210910,1719166240745,-500.0,0.00016438,2]
[330210911,1719166240755,-559.56,0.00016438,2]
[330210912,1719166240765,-668.76,0.00016438,2]
[330210913,1719166240775,-500.0,0.00016438,2]
[330210914,1719166240785,-151.0,0.00016438,2]
[330210915,1719166240795,-151.0,0.00016438,2]
[330210916,1719166240804,-500.0,0.00016438,2]
[330210917,1719166240814,-578.23,0.00016438,2]
[330210918,1719166240824,-500.0,0.00016438,2]
[330210919,1719166240834,-1352.88,0.00016438,2]
[330210920,1719166240843,-1108.2,0.00016438,2]
[330210921,1719166240853,-1164.73,0.00016438,2]
[330210922,1719166240863,-500.0,0.00016438,2]
[330210923,1719166240873,-1712.84,0.00016438,2]
[330210924,1719166240882,-500.0,0.00016438,2]
[330210925,1719166240892,-500.0,0.00016438,2]
[330210927,1719166240901,-500.0,0.00016438,2]
[330210929,1719166240911,-500.0,0.00016438,2]
[330210931,1719166240921,-500.0,0.00016438,2]
[330210932,1719166240931,-500.0,0.00016438,2]
[330210933,1719166240940,-1648.27,0.00016438,2]
[330210934,1719166240950,-500.0,0.00016438,2]
[330210935,1719166240960,-500.0,0.00016438,2]
[330210936,1719166240969,-865.48,0.00016438,2]
[330210937,1719166240980,-500.0,0.00016438,2]
[330210938,1719166240990,-579.50511627,0.00016438,2]
[330210939,1719166240999,-500.0,0.00016438,2]
[330210940,1719166241009,-500.0,0.00016438,2]
[330210941,1719166241019,-500.0,0.00016438,2]
[330210942,1719166241028,-500.0,0.00016438,2]
[330210943,1719166241038,-500.0,0.00016438,2]
[330210944,1719166241047,-37462.3,0.00016438,2]
[330210945,1719166241057,-858.13,0.00016438,2]
[330210946,1719166241067,-564.29,0.00016438,2]
[330210947,1719166241077,-523.47952944,0.00016438,2]
[330210949,1719166241087,-8609.06,0.00016438,2]
[330210950,1719166241097,-1455.42,0.00016438,2]
[330210951,1719166241106,-500.0,0.00016438,2]
[330210952,1719166241117,-500.0,0.00016438,2]
[330210953,1719166241126,-500.0,0.00016438,2]
[330210954,1719166241135,-500.0,0.00016438,2]
[330210955,1719166241145,-500.0,0.00016438,2]
[330210956,1719166241155,-500.0,0.00016438,2]
[330210957,1719166241165,-3566.34,0.00016438,2]
[330210958,1719166241175,-1535.59,0.00016438,2]
[330210959,1719166241184,-500.0,0.00016438,2]
[330210960,1719166241194,-503.58,0.00016438,2]
[330210961,1719166241204,-500.0,0.00016438,2]
[330210962,1719166241213,-539.57,0.00016438,2]
[330210963,1719166241223,-22621.08,0.00016438,2]
[330210964,1719166241233,-1546.34,0.00016438,2]
[330210965,1719166241243,-500.0,0.00016438,2]
[330210966,1719166241254,-500.0,0.00016438,2]
[330210967,1719166241263,-7184.37,0.00016438,2]
[330210968,1719166241274,-490.01253011,0.00016438,2]
[330210969,1719166241283,-582.32,0.00016438,2]
[330210970,1719166241293,-602.30218195,0.00016438,2]
[330210971,1719166241306,-1819.39,0.00016438,2]
[330210972,1719166241316,-500.0,0.00016438,2]
[330210973,1719166241325,-500.0,0.00016438,2]
[330210974,1719166241335,-766.17,0.00016438,2]
[330210975,1719166241344,-500.0,0.00016438,2]
[330210976,1719166241354,-6590.55,0.00016438,2]
[330210977,1719166241363,-167.99217524,0.00016438,2]
[330210978,1719166241372,-500.0,0.00016438,2]
[330210979,1719166241381,-151.0,0.00016438,2]
[330210980,1719166241391,-151.0,0.00016438,2]
[330210981,1719166241401,-473.87871896,0.00016438,2]
[330210982,1719166241411,-2870.51,0.00016438,2]
[330210983,1719166241420,-1270.87,0.00016438,2]
[330210984,1719166241430,-625.73,0.00016438,2]
[330210985,1719166241439,-500.0,0.00016438,2]
[330210986,1719166241449,-500.0,0.00016438,2]
[330210987,1719166241458,-500.0,0.00016438,2]
[330210988,1719166241468,-969.14,0.00016438,2]
[330210989,1719166241478,-672.38,0.00016438,2]
[330210990,1719166241487,-500.0,0.00016438,2]
[330210991,1719166241497,-625.07,0.00016438,2]
[330210992,1719166241510,-516.27778692,0.00016438,2]
[330210993,1719166241520,-1438.99,0.00016438,2]
[330210994,1719166241529,-734.16,0.00016438,2]
[330210995,1719166241539,-1161.74,0.00016438,2]
[330210996,1719166241549,-500.0,0.00016438,2]
[330210997,1719166241564,-4544.75,0.00016438,2]
[330210998,1719166241574,-541.70945954,0.00016438,2]
[330210999,1719166241584,-7387.21,0.00016438,2]
[330211000,1719166241595,-500.0,0.00016438,2]
[330211001,1719166241605,-500.0,0.00016438,2]
[330211002,1719166241615,-500.0,0.00016438,2]
[330211003,1719166241624,-843.83,0.00016438,2]
[330211004,1719166241633,-508.7203825,0.00016438,2]
[330211005,1719166241643,-500.0,0.00016438,2]
[330211006,1719166241654,-500.0,0.00016438,2]
[330211007,1719166241663,-463.03194475,0.00016438,2]
[330211008,1719166241687,-243.14805525,0.00016438,2]
[330211009,1719166241697,-729.56,0.00016438,2]
[330211010,1719166241708,-500.0,0.00016438,2]
[330211011,1719166241718,-283.23487238,0.00016438,2]
[330211012,1719166241730,-547.3820516,0.00016438,2]
[330211013,1719166241743,-439.08307602,0.00016438,2]
[330211014,1719166241754,-500.0,0.00016438,2]
[330211015,1719166241763,-65.67452398,0.00016438,2]
[330211016,1719166241775,-434.32547602,0.00016438,2]
[330211017,1719166241785,-500.0,0.00016438,2]
[330211018,1719166241796,-67.07602502,0.00016438,2]
[330211019,1719166241810,-455.11998684,0.00016438,2]
[330211020,1719166241820,-500.0,0.00016438,2]